bitfinex-derivatives/quotes_BNBF0:USTF0_20250715
["timestamp","ask_amount","ask_price","bid_price","bid_amount"]
[1752578261614,0.98670482,678.2,677.7,1.24504196]
[1752578262117,0.98670482,678.21,677.7,0.25662487]
[1752578263016,0.98670482,678.23,677.7,0.25662487]
[1752578263217,0.98670482,678.23,677.67,0.98841709]
[1752578263717,0.98670482,678.17,677.62,0.25665704]
[1752578264112,1.3220168,678.34,677.62,0.25665704]
[1752578264113,0.98670482,678.18,677.62,0.25665704]
[1752578264415,0.98670482,678.19,677.62,0.25665704]
[1752578265413,0.98670482,678.18,677.62,0.25665704]
[1752578265916,0.98670482,678.21,677.62,0.25665704]
[1752578268315,0.98670482,678.22,677.62,0.25665704]
[1752578269119,0.98670482,678.24,677.62,0.25665704]
[1752578271617,0.98670482,678.17,677.52,0.98841709]
[1752578271917,0.98670482,678.16,677.56,0.25667597]
[1752578272817,0.98670482,678.17,677.56,0.25667597]
[1752578273017,0.98670482,678.16,677.56,0.25667597]
[1752578273219,0.98670482,678.17,677.56,0.25667597]
[1752578274223,0.98670482,678.14,677.56,0.25667597]
[1752578275327,0.98670482,678.15,677.56,0.25667597]
[1752578276629,0.98670482,678.14,677.56,0.25667597]
[1752578277323,0.98670482,678.15,677.56,0.25667597]
[1752578277528,0.98670482,678.14,677.56,0.25667597]
[1752578278231,0.98670482,678.16,677.56,0.25667597]
[1752578279326,0.98670482,678.17,677.56,0.25667597]
[1752578279630,0.25660689,678.51,677.56,0.25667597]
[1752578279631,0.98670482,678.15,677.56,0.25667597]
[1752578281532,0.98670482,678.16,677.56,0.25667597]
[1752578283331,0.98670482,678.15,677.56,0.25667597]
[1752578283631,0.98670482,678.19,677.43,0.98841709]
[1752578283832,0.98670482,678.18,677.42,0.98841709]
[1752578284631,0.98670482,678.07,677.41,0.25672236]
[1752578285333,0.98670482,678.08,677.41,0.25672236]
[1752578286834,0.98670482,678.09,677.41,0.25672236]
[1752578287133,0.98670482,678.1,677.41,0.25672236]
[1752578287433,0.98670482,678.11,677.41,0.25672236]
[1752578287635,0.98670482,678.07,677.41,0.25672236]
[1752578288531,0.98670482,678.09,677.41,0.25672236]
[1752578288733,0.98670482,678.07,677.41,0.25672236]
[1752578289528,0.98670482,678.04,677.41,0.25672236]
[1752578289731,0.98670482,678.01,677.41,0.25672236]
[1752578290134,0.98670482,678.02,677.17,0.98841709]
[1752578290435,0.98670482,678.03,677.32,0.25678014]
[1752578290632,0.98670482,678.01,677.32,0.25678014]
[1752578290931,0.98670482,678.0,677.32,0.25678014]
[1752578291434,0.98670482,678.01,677.32,0.25678014]
[1752578291634,0.98670482,678.04,677.32,0.25678014]
[1752578293133,0.98670482,678.01,677.32,0.25678014]
[1752578293337,0.98670482,678.02,677.32,0.25678014]
[1752578293640,0.98670482,678.03,677.32,0.25678014]
[1752578294439,0.98670482,678.04,677.32,0.25678014]
[1752578295141,0.98670482,678.03,677.32,0.25678014]
[1752578295337,0.98670482,678.04,677.32,0.25678014]
[1752578295542,0.98670482,678.03,677.32,0.25678014]
[1752578295942,0.98670482,678.0,677.32,0.25678014]
[1752578297142,0.98670482,677.99,677.32,0.25678014]
[1752578297738,0.98670482,678.0,677.32,0.25678014]
[1752578298044,0.98670482,678.01,677.32,0.25678014]
[1752578298244,0.98670482,678.02,677.32,0.25678014]
[1752578299044,0.98670482,678.01,677.32,0.25678014]
[1752578299745,0.98670482,678.04,677.32,0.25678014]
[1752578300145,0.98670482,678.08,677.32,0.25678014]
[1752578300547,0.98670482,678.09,677.32,0.25678014]
[1752578300947,0.98670482,678.14,677.32,0.25678014]
[1752578301649,0.98670482,678.19,677.32,0.25678014]
[1752578302045,0.98670482,678.2,677.32,0.25678014]
[1752578302244,0.98670482,678.19,677.32,0.25678014]
[1752578302744,0.98670482,678.2,677.32,0.25678014]
[1752578305646,0.98670482,678.17,677.32,0.25678014]
[1752578307749,0.98670482,678.18,677.32,0.25678014]
[1752578310348,0.98670482,678.15,677.32,0.25678014]
[1752578311953,0.98670482,678.14,677.32,0.25678014]
[1752578312450,0.98670482,678.13,677.32,0.25678014]
[1752578314251,0.98670482,678.22,677.39,0.98841709]
[1752578314551,0.98670482,678.22,677.4,0.98841709]
[1752578315457,0.98670482,678.21,677.4,0.98841709]
[1752578315656,0.98670482,678.21,677.41,0.98841709]
[1752578317156,0.98670482,678.21,677.42,0.98841709]
[1752578317357,0.98670482,678.21,677.41,0.98841709]
[1752578317652,0.98670482,678.24,677.47,0.98841709]
[1752578318256,0.98670482,678.24,677.48,0.98841709]
[1752578320054,0.98670482,678.23,677.48,0.98841709]
[1752578320254,0.98670482,678.23,677.49,0.98841709]
[1752578321555,0.98670482,678.22,677.5,0.98841709]
[1752578324156,0.98670482,678.21,677.5,0.98841709]
[1752578324358,0.98670482,678.22,677.5,0.98841709]
[1752578325362,0.98670482,678.23,677.49,0.98841709]
[1752578326460,0.98670482,678.26,677.47,0.98841709]
[1752578327565,0.98670482,678.27,677.47,0.98841709]
[1752578327766,0.98670482,678.23,677.43,0.98841709]
[1752578329862,0.98670482,678.22,677.41,0.98841709]
[1752578330266,0.98670482,678.21,677.42,0.98841709]
[1752578330767,0.98670482,678.22,677.42,0.98841709]
[1752578331467,0.98670482,678.21,677.42,0.98841709]
[1752578336272,0.98670482,678.21,677.43,0.98841709]
[1752578336476,0.98670482,678.18,677.44,0.98841709]
[1752578336973,0.98670482,678.17,677.45,0.98841709]
[1752578337372,0.98670482,678.16,677.46,0.98841709]
[1752578338269,0.98670482,678.14,677.48,0.98841709]
[1752578338572,0.98670482,678.13,677.48,0.98841709]
[1752578338769,0.98670482,678.14,677.47,0.98841709]
[1752578339073,0.98670482,678.15,677.46,0.98841709]
[1752578339573,0.98670482,678.16,677.46,0.98841709]
[1752578339772,0.98670482,678.18,677.47,0.98841709]
[1752578340072,0.98670482,678.21,677.51,0.98841709]
[1752578342877,0.98670482,678.25,677.55,0.98841709]
[1752578343380,0.98670482,678.25,677.54,0.98841709]
[1752578344878,0.98670482,678.41,677.4,0.98841709]
[1752578345374,0.98670482,678.42,677.4,0.98841709]
[1752578346074,0.98670482,678.43,677.4,0.98841709]
[1752578347278,0.98670482,678.43,677.39,0.98841709]
[1752578350181,0.98670482,678.41,677.38,0.98841709]
[1752578350382,0.98670482,678.39,677.36,0.98841709]
[1752578350578,0.98670482,678.37,677.34,0.98841709]
[1752578351578,0.98670482,678.28,677.35,0.98841709]
[1752578351779,0.98670482,678.23,677.38,0.98841709]
[1752578352183,0.98670482,678.23,677.32,0.25678014]
[1752578352184,0.98670482,678.2,677.36,0.98841709]
[1752578352483,0.98670482,678.2,677.37,0.98841709]
[1752578353179,0.98670482,678.2,677.32,0.25678014]
[1752578353180,0.98670482,678.17,677.38,0.98841709]
[1752578353378,0.98670482,678.17,677.32,0.25678014]
[1752578353379,0.98670482,678.09,677.32,0.25678014]
[1752578354281,0.98670482,678.09,677.32,1.24519723]
[1752578355381,0.98670482,678.03,677.36,0.98841709]
[1752578357284,0.98670482,678.01,677.38,0.98841709]
[1752578357486,0.98670482,678.03,677.37,0.98841709]
[1752578358185,0.98670482,678.02,677.37,0.98841709]
[1752578359289,0.98670482,678.02,677.38,0.98841709]
[1752578361089,0.98670482,677.99,677.35,0.98841709]
[1752578361292,0.98670482,677.99,677.34,0.98841709]
[1752578362194,0.98670482,677.97,677.33,0.98841709]
[1752578362396,0.98670482,677.98,677.33,0.98841709]
[1752578362693,0.98670482,677.96,677.32,0.25678014]
[1752578362891,0.98670482,677.97,677.32,0.25678014]
[1752578363096,0.98670482,677.96,677.32,0.25678014]
[1752578363296,0.98670482,677.97,677.32,0.25678014]
[1752578364094,0.25660689,678.51,677.32,0.25678014]
[1752578364095,0.98670482,677.98,677.32,0.25678014]
[1752578365695,0.98670482,678.0,677.32,0.25678014]
[1752578366402,0.98670482,678.1,677.32,0.25678014]
[1752578368201,0.98670482,678.11,677.32,0.25678014]
[1752578369498,0.98670482,678.15,677.32,0.25678014]
[1752578369697,0.98670482,678.13,677.32,0.25678014]
[1752578371501,0.98670482,678.14,677.32,0.25678014]
[1752578372001,0.98670482,678.13,677.32,0.25678014]
[1752578372300,0.98670482,678.14,677.32,0.25678014]
[1752578372504,0.98670482,678.16,677.32,0.25678014]
[1752578374105,0.98670482,678.11,677.32,0.25678014]
[1752578374306,0.98670482,678.12,677.32,0.25678014]
[1752578375202,0.98670482,678.13,677.32,0.25678014]
[1752578376004,0.98670482,678.12,677.32,0.25678014]
[1752578379112,0.98670482,678.13,677.32,0.25678014]
[1752578379408,0.98670482,678.09,677.32,0.25678014]
[1752578381009,0.25660689,678.51,677.32,0.25678014]
[1752578381010,0.98670482,678.07,677.32,0.25678014]
[1752578381415,0.98670482,677.92,677.16,0.98841709]
[1752578381615,0.98670482,677.91,677.2,0.2567934]
[1752578383315,0.98670482,677.92,677.2,0.2567934]
[1752578385017,0.98670482,677.91,677.2,0.2567934]
[1752578385217,0.98670482,677.92,677.2,0.2567934]
[1752578385819,1.3220168,678.07,677.2,0.2567934]
[1752578386119,1.9830253,678.23,677.2,0.2567934]
[1752578386319,1.3176479,678.07,677.2,0.2567934]
[1752578386523,0.98823593,677.91,677.2,0.2567934]
[1752578387016,1.3176479,678.07,677.2,0.2567934]
[1752578387317,1.9830253,678.22,677.2,0.2567934]
[1752578387820,0.98825652,677.91,677.2,0.2567934]
[1752578388018,0.98825652,677.92,677.2,0.2567934]
[1752578392927,0.98825652,677.91,677.2,0.2567934]
[1752578394424,0.98825652,678.01,677.2,0.2567934]
[1752578395027,0.98825652,677.98,677.2,0.2567934]
[1752578395326,0.98825652,677.99,677.2,0.2567934]
[1752578397229,0.98825652,678.04,677.2,0.2567934]
[1752578400831,0.98825652,677.99,677.2,0.2567934]
[1752578401532,0.98825652,677.91,677.2,0.2567934]
[1752578403531,0.98825652,677.9,677.2,0.2567934]
[1752578403734,0.98825652,677.89,677.2,0.2567934]
[1752578404235,0.98825652,677.86,677.2,0.2567934]
[1752578405634,0.98825652,677.85,676.89,0.99143449]
[1752578405836,0.98825652,677.85,677.08,0.25686069]
[1752578406037,0.98825652,677.84,677.08,0.25686069]
[1752578406237,0.98825652,677.83,677.08,0.25686069]
[1752578406537,0.98825652,677.84,677.08,0.25686069]
[1752578406738,0.98825652,677.82,677.08,0.25686069]
[1752578406939,0.98825652,677.82,676.86,0.99143449]
[1752578407133,0.98825652,677.82,677.0,0.25688249]
[1752578407636,0.98825652,677.79,677.0,0.25688249]
[1752578408536,0.98825652,677.77,677.0,0.25688249]
[1752578409136,0.98825652,677.7,677.0,0.25688249]
[1752578410239,0.98825652,677.67,677.0,0.25688249]
[1752578412041,0.98825652,677.68,677.0,0.25688249]
[1752578412541,0.98825652,677.81,677.0,0.25688249]
[1752578412942,0.98825652,677.86,677.0,0.25688249]
[1752578413642,0.98825652,677.87,677.0,0.25688249]
[1752578415546,0.98825652,677.92,677.0,0.25688249]
[1752578415945,0.98825652,677.89,677.0,0.25688249]
[1752578416147,1.3176753,678.1,677.0,0.25688249]
[1752578416148,0.98825652,677.9,677.0,0.25688249]
[1752578416644,0.98825652,677.92,677.0,0.25688249]
[1752578419446,0.98825652,677.91,677.0,0.25688249]
[1752578419745,0.98825652,677.88,677.0,0.25688249]
[1752578420245,0.98825652,677.89,677.0,0.25688249]
[1752578421150,0.98825652,677.94,677.0,0.25688249]
[1752578422649,0.98825652,677.96,677.0,0.25688249]
[1752578422849,0.2568332,677.9,677.0,0.25688249]
[1752578427451,1.24508972,677.9,677.0,0.25688249]
[1752578428148,0.98825652,677.88,677.0,0.25688249]
[1752578428850,0.98825652,677.87,677.0,0.25688249]
[1752578429550,0.98825652,677.86,677.0,0.25688249]
[1752578430250,0.98825652,677.85,677.0,0.25688249]
[1752578430652,0.98825652,677.83,677.0,0.25688249]
[1752578431050,0.98825652,677.75,677.0,1.24831698]
[1752578431450,0.98825652,677.7,677.03,0.99143449]
[1752578431954,0.98825652,677.71,677.02,0.99143449]
[1752578432452,0.98825652,677.71,677.0,0.25688249]
[1752578432453,0.98825652,677.66,677.0,0.25688249]
[1752578433252,0.98825652,677.65,677.0,0.25688249]
[1752578433454,0.98825652,677.66,677.0,0.25688249]
[1752578433750,0.98825652,677.65,677.0,0.25688249]
[1752578433954,0.98825652,677.8,677.0,0.25688249]
[1752578437857,0.98825652,677.83,677.0,0.25688249]
[1752578438952,0.98825652,677.86,677.0,0.25688249]
[1752578439357,0.98825652,677.85,677.0,0.25688249]
[1752578439658,0.98825652,677.83,677.0,0.25688249]
[1752578439858,0.98825652,677.74,677.0,0.25688249]
[1752578440559,0.98825652,677.68,677.0,0.25688249]
[1752578441660,0.98825652,677.67,677.0,0.25688249]
[1752578442361,0.98825652,677.68,677.0,0.25688249]
[1752578443162,0.98825652,677.66,677.0,0.25688249]
[1752578443362,0.98825652,677.65,677.0,0.25688249]
[1752578443563,0.98825652,677.62,677.0,0.25688249]
[1752578443858,0.98825652,677.6,677.0,0.25688249]
[1752578444063,0.98825652,677.55,677.0,0.25688249]
[1752578444964,0.98825652,677.54,677.0,0.25688249]
[1752578446461,0.98825652,677.55,677.0,0.25688249]
[1752578447065,0.98825652,677.66,677.0,0.25688249]
[1752578448160,0.98825652,677.68,677.0,0.25688249]
[1752578448363,0.98825652,677.75,677.0,0.25688249]
[1752578449266,0.98825652,677.74,677.0,0.25688249]
[1752578449464,0.98825652,677.72,677.0,0.25688249]
[1752578449661,0.98825652,677.71,677.0,0.25688249]
[1752578449866,0.98825652,677.65,677.0,0.25688249]
[1752578450268,0.98825652,677.66,677.0,0.25688249]
[1752578450866,0.98825652,677.65,677.0,0.25688249]
[1752578451270,0.98825652,677.66,677.0,0.25688249]
[1752578452270,0.98825652,677.65,677.0,0.25688249]
[1752578452972,0.98825652,677.66,677.0,0.25688249]
[1752578456776,0.98825652,677.65,677.0,0.25688249]
[1752578456970,0.98825652,677.64,677.0,0.25688249]
[1752578457676,0.98825652,677.63,677.0,0.25688249]
[1752578457972,0.98825652,677.62,677.0,0.25688249]
[1752578459777,0.98825652,677.6,677.0,0.25688249]
[1752578460777,0.98825652,677.59,677.0,0.25688249]
[1752578461174,0.98825652,677.58,677.0,0.25688249]
[1752578461676,0.98825652,677.66,677.0,0.25688249]
[1752578462375,0.98825652,677.65,677.0,0.25688249]
[1752578464682,0.98825652,677.66,677.0,0.25688249]
[1752578471581,0.98825652,677.6,677.0,0.25688249]
[1752578473181,0.98825652,677.59,677.0,0.25688249]
[1752578473481,0.98825652,677.64,677.0,0.25688249]
[1752578473880,0.98825652,677.63,677.0,0.25688249]
[1752578475781,0.98825652,677.62,677.0,0.25688249]
[1752578476280,0.98825652,677.61,677.0,0.25688249]
[1752578476483,1.3176753,677.76,677.0,0.25688249]
[1752578476484,0.98825652,677.6,677.0,0.25688249]
[1752578477488,0.98825652,677.59,677.0,0.25688249]
[1752578477985,0.98825652,677.6,677.0,0.25688249]
[1752578479785,0.98825652,677.59,677.0,0.25688249]
[1752578481083,0.98825652,677.6,677.0,0.25688249]
[1752578481688,0.98825652,677.59,677.0,0.25688249]
[1752578482585,0.98825652,677.57,677.0,0.25688249]
[1752578482983,0.98825652,677.58,677.0,0.25688249]
[1752578483187,0.98825652,677.61,677.0,0.25688249]
[1752578483388,0.98825652,677.62,677.0,0.25688249]
[1752578484295,0.98825652,677.61,677.0,0.25688249]
[1752578486197,0.98825652,677.6,677.0,0.25688249]
[1752578487598,0.98825652,677.58,677.0,0.25688249]
[1752578487995,0.98825652,677.57,677.0,1.24831698]
[1752578489000,0.98825652,677.57,677.01,0.99143449]
[1752578489296,0.98825652,677.56,677.01,0.99143449]
[1752578490402,0.98825652,677.56,677.02,0.99143449]
[1752578491095,0.2568332,677.9,677.02,0.99143449]
[1752578491096,0.98825652,677.55,677.02,0.99143449]
[1752578491296,0.98825652,677.54,677.03,0.99143449]
[1752578491596,0.98825652,677.51,677.02,0.99143449]
[1752578492301,0.98825652,677.5,677.02,0.99143449]
[1752578492500,0.98825652,677.51,677.02,0.99143449]
[1752578493596,0.98825652,677.5,677.02,0.99143449]
[1752578493798,0.98825652,677.51,677.02,0.99143449]
[1752578494399,0.98825652,677.5,677.02,0.99143449]
[1752578495403,0.98825652,677.51,677.02,0.99143449]
[1752578496203,0.98825652,677.5,677.03,0.99143449]
[1752578496907,0.98825652,677.51,677.02,0.99143449]
[1752578497406,0.98825652,677.51,677.03,0.99143449]
[1752578498506,0.98825652,677.52,677.02,0.99143449]
[1752578499007,0.98825652,677.52,677.01,0.99143449]
[1752578500611,0.98825652,677.53,677.01,0.99143449]
[1752578500811,0.98825652,677.53,677.0,1.24831698]
[1752578501106,0.98825652,677.5,677.0,0.25688249]
[1752578501311,0.98825652,677.51,677.0,0.25688249]
[1752578502508,0.98825652,677.5,677.0,0.25688249]
[1752578503308,0.98825652,677.49,677.0,0.25688249]
[1752578503608,0.98825652,677.47,677.0,0.25688249]
[1752578504812,0.98825652,677.48,677.0,0.25688249]
[1752578506214,0.98825652,677.47,677.0,0.25688249]
[1752578507010,0.98825652,677.48,677.0,0.25688249]
[1752578507214,0.98825652,677.51,677.0,0.25688249]
[1752578509215,0.98825652,677.5,677.0,0.25688249]
[1752578510624,0.98825652,677.51,677.0,0.25688249]
[1752578513620,0.98825652,677.5,677.0,0.25688249]
[1752578513820,0.98825652,677.54,677.0,0.25688249]
[1752578515120,0.98825652,677.56,677.0,0.25688249]
[1752578518420,0.98825652,677.55,677.0,0.25688249]
[1752578518623,0.98825652,677.56,677.0,0.25688249]
[1752578519324,0.98825652,677.55,677.0,0.25688249]
[1752578521923,0.98825652,677.52,677.0,0.25688249]
[1752578523924,0.98825652,677.51,677.0,0.25688249]
[1752578525028,0.98825652,677.5,677.0,0.25688249]
[1752578525225,0.98825652,677.47,677.01,0.99143449]
[1752578525729,0.98825652,677.46,677.01,0.99143449]
[1752578526327,0.98825652,677.45,677.02,0.99143449]
[1752578527929,0.98825652,677.46,677.01,0.99143449]
[1752578528525,0.98825652,677.48,677.0,1.24831698]
[1752578529825,0.98825652,677.49,677.0,0.25688249]
[1752578531430,0.2568332,677.9,677.0,0.25688249]
[1752578531431,0.98825652,677.5,677.0,0.25688249]
[1752578532629,0.98825652,677.51,677.0,0.25688249]
[1752578532929,0.98825652,677.54,677.03,0.99143449]
[1752578533230,0.98825652,677.55,677.02,0.99143449]
[1752578533928,0.98825652,677.56,677.03,0.99143449]
[1752578537237,0.98825652,677.55,677.03,0.99143449]
[1752578537437,0.98825652,677.57,677.02,0.99143449]
[1752578537835,0.98825652,677.56,677.02,0.99143449]
[1752578538235,0.98825652,677.57,677.02,0.99143449]
[1752578538436,0.98825652,677.56,677.03,0.99143449]
[1752578539945,0.98825652,677.57,677.02,0.99143449]
[1752578540442,0.98825652,677.56,677.02,0.99143449]
[1752578541143,0.98825652,677.55,677.03,0.99143449]
[1752578541838,0.98825652,677.56,677.03,0.99143449]
[1752578542641,0.98825652,677.57,677.02,0.99143449]
[1752578546846,0.98825652,677.54,677.04,0.99143449]
[1752578551054,0.98825652,677.53,677.04,0.99143449]
[1752578552554,0.98825652,677.51,677.06,0.99143449]
[1752578553252,0.98825652,677.59,677.01,0.99143449]
[1752578553652,0.98825652,677.61,677.0,0.25688249]
[1752578555255,0.98825652,677.62,677.0,0.25688249]
[1752578556852,0.98825652,677.63,677.0,0.25688249]
[1752578557257,0.98825652,677.64,677.0,0.25688249]
[1752578557458,0.98825652,677.66,677.01,0.99143449]
[1752578560254,0.98825652,677.66,677.0,1.24831698]
[1752578560556,0.98825652,677.67,677.0,1.24831698]
[1752578562159,0.98825652,677.61,677.04,0.99143449]
[1752578562859,0.98825652,677.62,677.05,0.99143449]
[1752578563960,0.98825652,677.63,677.05,0.99143449]
[1752578564861,0.98825652,677.64,677.05,0.99143449]
[1752578565363,0.2568332,677.9,677.0,0.25688249]
[1752578565364,0.98825652,677.69,677.1,0.99143449]
[1752578565859,0.98825652,677.69,677.11,0.99143449]
[1752578566163,0.98825652,677.68,677.12,0.99143449]
[1752578566358,0.98825652,677.69,677.11,0.99143449]
[1752578566958,0.98825652,677.68,677.12,0.99143449]
[1752578567162,0.98825652,677.69,677.11,0.99143449]
[1752578567358,0.98825652,677.68,677.11,0.99143449]
[1752578568365,0.98825652,677.69,677.11,0.99143449]
[1752578568664,0.98825652,677.68,677.11,0.99143449]
[1752578569065,0.98825652,677.76,677.2,0.99143449]
[1752578569365,0.98825652,677.75,677.2,0.99143449]
[1752578569562,0.98825652,677.76,677.2,0.99143449]
[1752578570165,0.98825652,677.76,677.19,0.99143449]
[1752578570462,0.98825652,677.75,677.21,0.99143449]
[1752578570865,0.98825652,677.74,677.21,0.99143449]
[1752578571261,0.98825652,677.74,677.08,1.3219126]
[1752578571262,0.98825652,677.75,677.2,0.99143449]
[1752578572166,0.98825652,677.76,677.19,0.99143449]
[1752578572767,0.98825652,677.8,677.16,0.99143449]
[1752578573263,0.98825652,677.81,677.16,0.99143449]
[1752578574269,0.98825652,677.82,677.15,0.99143449]
[1752578576271,0.98825652,677.82,677.14,0.99143449]
[1752578577268,0.98825652,677.82,677.13,0.99143449]
[1752578577670,0.98825652,677.83,677.13,0.99143449]
[1752578578870,0.98825652,677.84,677.12,0.99143449]
[1752578580172,0.25681804,678.01,677.14,0.99143449]
[1752578580173,0.98825652,677.81,677.14,0.99143449]
[1752578580476,0.98825652,677.82,677.13,0.99143449]
[1752578580677,0.98825652,677.81,677.07,0.99143449]
[1752578581274,0.98825652,677.79,677.05,0.99143449]
[1752578581978,0.98825652,677.74,677.01,0.99143449]
[1752578582375,0.98825652,677.83,677.0,0.25688249]
[1752578582780,0.98825652,677.81,677.0,0.25688249]
[1752578583577,0.98825652,677.8,677.0,0.25688249]
[1752578583777,0.98825652,677.79,677.0,0.25688249]
[1752578584577,1.3176753,678.0,677.0,0.25688249]
[1752578584877,0.9883787,677.79,677.0,0.25688249]
[1752578585080,0.9883787,677.76,677.0,0.25688249]
[1752578586178,0.9883787,677.62,677.0,0.25688249]
[1752578586381,0.9883787,677.61,677.0,0.25688249]
[1752578586782,0.9883787,677.62,677.0,0.25688249]
[1752578587078,0.9883787,677.61,677.0,0.25688249]
[1752578587281,0.9883787,677.62,677.0,0.25688249]
[1752578587582,0.9883787,677.63,677.0,0.25688249]
[1752578587782,0.9883787,677.62,677.0,0.25688249]
[1752578589084,0.9883787,677.63,677.0,0.25688249]
[1752578591280,0.9883787,677.64,677.0,0.25688249]
[1752578591678,0.9883787,677.63,677.0,0.25688249]
[1752578594983,0.9883787,677.61,677.0,0.25688249]
[1752578595284,0.9883787,677.6,677.0,0.25688249]
[1752578595789,0.25681804,678.01,677.0,0.25688249]
[1752578595790,0.9883787,677.57,677.0,0.25688249]
[1752578598392,0.9883787,677.58,677.0,0.25688249]
[1752578602995,0.9883787,677.57,677.0,0.25688249]
[1752578603196,0.9883787,677.6,677.0,0.25688249]
[1752578604792,0.9883787,677.59,677.0,0.25688249]
[1752578604993,0.9883787,677.6,677.0,0.25688249]
[1752578605598,0.9883787,677.59,677.0,0.25688249]
[1752578606793,0.9883787,677.58,677.0,0.25688249]
[1752578608496,0.9883787,677.59,677.0,0.25688249]
[1752578608998,0.9883787,677.58,677.0,0.25688249]
[1752578610401,0.9883787,677.57,677.0,0.25688249]
[1752578613207,0.9883787,677.56,677.0,0.25688249]
[1752578613507,0.9883787,677.55,677.0,0.25688249]
[1752578613709,0.9883787,677.58,677.0,0.25688249]
[1752578613912,0.9883787,677.6,677.0,0.25688249]
[1752578614708,0.9883787,677.63,676.87,0.99304347]
[1752578615008,0.9883787,677.63,677.05,0.2568806]
[1752578615508,0.25681804,678.01,677.05,0.2568806]
[1752578615509,0.9883787,677.68,677.05,0.2568806]
[1752578616108,0.9883787,677.66,677.05,0.2568806]
[1752578616408,0.9883787,677.69,677.05,0.2568806]
[1752578616904,0.9883787,677.68,677.05,0.2568806]
[1752578620306,0.9883787,677.69,677.05,0.2568806]
[1752578620606,0.9883787,677.68,677.05,0.2568806]
[1752578621110,0.9883787,677.67,677.05,0.2568806]
[1752578625317,0.9883787,677.66,677.05,0.2568806]
[1752578625812,0.9883787,677.65,677.05,0.2568806]
[1752578626618,0.9883787,677.64,677.05,0.2568806]
[1752578629220,0.9883787,677.63,677.05,0.2568806]
[1752578629421,0.9883787,677.67,677.05,0.2568806]
[1752578629622,0.9883787,677.68,677.05,0.2568806]
[1752578630724,0.9883787,677.71,677.05,0.2568806]
[1752578631224,0.9883787,677.72,677.05,0.2568806]
[1752578631627,0.25681804,678.01,677.05,0.2568806]
[1752578631628,0.9883787,677.7,677.05,0.2568806]
[1752578632225,0.9883787,677.69,677.05,0.2568806]
[1752578632527,0.9883787,677.7,677.05,0.2568806]
[1752578632828,0.9883787,677.75,677.05,0.2568806]
[1752578633328,0.98858561,677.75,677.05,1.24996192]
[1752578633723,0.98858561,677.75,677.05,0.2568806]
[1752578633926,0.98858561,677.75,677.05,1.24996192]
[1752578634529,0.98858561,677.77,677.05,0.2568806]
[1752578636133,0.98858561,677.76,677.05,1.24996192]
[1752578636430,0.98858561,677.81,677.09,0.99308132]
[1752578636627,0.98858561,677.81,677.1,0.99308132]
[1752578637232,0.98858561,677.81,677.11,0.99308132]
[1752578637428,0.98858561,677.81,677.1,0.99308132]
[1752578637732,0.98858561,677.8,677.1,0.99308132]
[1752578637931,0.98858561,677.8,677.11,0.99308132]
[1752578638235,0.98858561,677.8,677.12,0.99308132]
[1752578638434,0.98858561,677.8,677.11,0.99308132]
[1752578639229,0.98858561,677.8,677.12,0.99308132]
[1752578639432,0.98858561,677.8,677.11,0.99308132]
[1752578640835,0.98858561,677.8,677.12,0.99308132]
[1752578641931,0.98858561,677.84,677.2,0.99308132]
[1752578642131,0.98858561,677.85,677.19,0.99308132]
[1752578642336,0.98858561,677.9,677.25,0.99308132]
[1752578642538,0.98858561,677.92,677.27,0.99308132]
[1752578643233,0.98858561,677.93,677.25,0.99308132]
[1752578644836,0.98858561,677.92,677.25,0.99308132]
[1752578645037,0.98858561,677.9,677.26,0.99308132]
[1752578645336,0.98858561,677.91,677.25,0.99308132]
[1752578645938,0.98858561,677.95,677.22,0.99308132]
[1752578646138,0.98858561,677.96,677.21,0.99308132]
[1752578647134,0.98858561,677.96,677.2,0.99308132]
[1752578647535,0.98858561,677.97,677.2,0.99308132]
[1752578648335,0.98858561,677.97,677.19,0.99308132]
[1752578649138,0.98858561,677.98,677.18,0.99308132]
[1752578650239,0.98858561,677.98,677.17,0.99308132]
[1752578651241,0.98858561,677.99,677.16,0.99308132]
[1752578652241,0.98858561,677.98,677.16,0.99308132]
[1752578652437,0.98858561,677.99,677.16,0.99308132]
[1752578652742,0.98858561,677.98,677.16,0.99308132]
[1752578652938,0.98858561,677.99,677.16,0.99308132]
[1752578653238,0.98858561,677.99,677.15,0.99308132]
[1752578654343,0.98858561,678.02,677.13,0.99308132]
[1752578655239,0.98858561,678.02,677.12,0.99308132]
[1752578655642,0.98858561,678.01,677.13,0.99308132]
[1752578655942,0.98858561,678.01,677.14,0.99308132]
[1752578656142,0.98858561,678.02,677.14,0.99308132]
[1752578656339,0.98858561,678.08,677.19,0.99308132]
[1752578656746,0.98858561,678.05,677.21,0.99308132]
[1752578656940,0.98858561,678.06,677.2,0.99308132]
[1752578657341,0.98858561,678.1,677.23,0.99308132]
[1752578657842,0.98858561,678.11,677.22,0.99308132]
[1752578658145,0.98858561,678.15,677.24,0.99308132]
[1752578658945,0.98858561,678.17,677.26,0.99308132]
[1752578659346,0.98858561,678.17,677.25,0.99308132]
[1752578659847,0.98858561,678.19,677.24,0.99308132]
[1752578660248,0.98858561,678.19,677.23,0.99308132]
[1752578661148,0.98858561,678.2,677.22,0.99308132]
[1752578661349,0.98858561,678.25,677.27,0.99308132]
[1752578661645,0.98858561,678.28,677.3,0.99308132]